fUSD/lending_fUSD_20240814
["ID","MTS","AMOUNT","RATE_DAILY","PERIOD"]
[334956657,1723671081121,-500.0,0.00018629,2]
[334956658,1723671081132,-500.0,0.00018629,2]
[334956659,1723671081143,-696.69,0.00018629,2]
[334956660,1723671081152,-500.0,0.00018629,2]
[334956661,1723671081163,-722.64,0.00018629,2]
[334956662,1723671081172,-979.79,0.00018629,2]
[334956663,1723671081182,-500.0,0.00018629,2]
[334956664,1723671081192,-500.0,0.00018629,2]
[334956665,1723671081202,-500.0,0.00018629,2]
[334956666,1723671081212,-639.81,0.00018629,2]
[334956667,1723671081222,-500.0,0.00018629,2]
[334956668,1723671081232,-500.0,0.00018629,2]
[334956669,1723671081242,-186.07620423,0.00018629,2]
[334956670,1723671081253,-673.87,0.00018629,2]
[334956671,1723671081263,-500.0,0.00018629,2]
[334956672,1723671081273,-1191.97,0.00018629,2]
[334956673,1723671081283,-500.0,0.00018629,2]
[334956674,1723671081293,-500.0,0.00018629,2]
[334956675,1723671081303,-500.0,0.00018629,2]
[334956676,1723671081313,-716.22,0.00018629,2]
[334956677,1723671081322,-1083.34,0.00018629,2]
[334956678,1723671081332,-500.0,0.00018629,2]
[334956679,1723671081343,-867.92,0.00018629,2]
[334956680,1723671081354,-598.09,0.00018629,2]
[334956681,1723671081364,-500.0,0.00018629,2]
[334956682,1723671081373,-837.07,0.00018629,2]
[334956683,1723671081383,-526.04,0.00018629,2]
[334956684,1723671081393,-500.0,0.00018629,2]
[334956685,1723671081403,-500.0,0.00018629,2]
[334956686,1723671081412,-500.0,0.00018629,2]
[334956687,1723671081423,-828.6,0.0001863,2]
[334956688,1723671081432,-2000.0,0.0001863,2]
[334956689,1723671081442,-578.01,0.0001863,2]
[334956690,1723671081452,-500.0,0.0001863,2]
[334956691,1723671081461,-309.36204938,0.0001863,2]
[334956692,1723671081471,-543.0,0.0001863,2]
[334956693,1723671081481,-516.82,0.0001863,2]
[334956694,1723671081491,-1439.5,0.0001863,2]
[334956695,1723671081500,-540.83,0.0001863,2]
[334956696,1723671081515,-500.0,0.0001863,2]
[334956697,1723671081526,-298.40295224,0.0001863,2]
[334956698,1723671081535,-500.0,0.0001863,2]
[334956699,1723671081545,-1349.32,0.0001863,2]
[334956700,1723671081555,-879.23,0.0001863,2]
[334956701,1723671081565,-320.01951706,0.0001863,2]
[334956702,1723671081575,-1445.27,0.0001863,2]
[334956703,1723671081584,-312.17786625,0.00018678,2]
[334956704,1723671081594,-500.0,0.00018756,2]
[334956705,1723671081604,-1074.68,0.00018902,2]
[334956706,1723671081613,-1128.61,0.00018902,2]
[334956707,1723671081622,-507.16,0.00018902,2]
[334956708,1723671081631,-500.0,0.00018902,2]
[334956709,1723671081640,-500.0,0.00018903,2]
[334956710,1723671081650,-500.0,0.00018903,2]
[334956711,1723671081659,-500.0,0.00018903,2]
[334956712,1723671081668,-500.0,0.00018903,2]
[334956713,1723671081677,-500.0,0.00018903,2]
[334956714,1723671081687,-696.69,0.00018903,2]
[334956715,1723671081697,-196.30714224,0.00018903,2]
[334956716,1723671081706,-722.64,0.00018903,2]
[334956717,1723671081715,-979.79,0.00018903,2]
[334956718,1723671081725,-500.0,0.00018903,2]
[334956719,1723671081734,-500.0,0.00018903,2]
[334956720,1723671081743,-500.0,0.00018903,2]
[334956721,1723671081753,-639.81,0.00018903,2]
[334956722,1723671081763,-500.0,0.00018903,2]
[334956723,1723671081773,-500.0,0.00018903,2]
[334956724,1723671081782,-673.87,0.00018903,2]
[334956725,1723671081792,-500.0,0.00018903,2]
[334956726,1723671081801,-1191.97,0.00018903,2]
[334956727,1723671081811,-500.0,0.00018903,2]
[334956728,1723671081822,-500.0,0.00018903,2]
[334956729,1723671081832,-500.0,0.00018903,2]
[334956730,1723671081843,-716.22,0.00018903,2]
[334956731,1723671081853,-1083.34,0.00018903,2]
[334956732,1723671081862,-500.0,0.00018903,2]
[334956733,1723671081871,-867.92,0.00018903,2]
[334956734,1723671081881,-598.09,0.00018903,2]
[334956735,1723671081890,-500.0,0.00018903,2]
[334956736,1723671081900,-837.07,0.00018903,2]
[334956737,1723671081911,-526.04,0.00018903,2]
[334956738,1723671081922,-500.0,0.00018903,2]
[334956739,1723671081931,-500.0,0.00018903,2]
[334956740,1723671081942,-500.0,0.00018903,2]
[334956741,1723671081953,-828.6,0.00018904,2]
[334956742,1723671081963,-2000.0,0.00018904,2]
[334956743,1723671081973,-578.01,0.00018904,2]
[334956744,1723671081983,-500.0,0.00018904,2]
[334956745,1723671081992,-543.0,0.00018904,2]
[334956746,1723671082003,-516.82,0.00018904,2]
[334956747,1723671082014,-1439.5,0.00018904,2]
[334956748,1723671082024,-500.0,0.00018904,2]
[334956749,1723671082035,-500.0,0.00018904,2]
[334956750,1723671082045,-1349.32,0.00018904,2]
[334956751,1723671082055,-879.23,0.00018904,2]
[334956752,1723671082065,-1445.27,0.00018904,2]
[334956753,1723671082075,-186.55061653,0.00019,2]
[334956754,1723671082085,-155.06424852,0.00019,2]
[334956755,1723671082095,-1001.39855123,0.00019,2]
[334956756,1723671082105,-251914.09847474,0.00019,2]
[334956757,1723671082115,-1000.0,0.00019,2]
[334956758,1723671082125,-200.0,0.0001901,2]
[334956759,1723671082135,-500.0,0.0001903,2]
[334956760,1723671082144,-764.0,0.00019053,2]
[334956761,1723671082154,-5110.0,0.00019053,2]
[334956762,1723671082164,-3000.0,0.000191,2]
[334956763,1723671082174,-1074.68,0.00019176,2]
[334956764,1723671082184,-1128.61,0.00019176,2]
[334956765,1723671082194,-507.16,0.00019176,2]
[334956766,1723671082203,-500.0,0.00019176,2]
[334956767,1723671082213,-500.0,0.00019177,2]
[334956768,1723671082222,-500.0,0.00019177,2]
[334956769,1723671082232,-500.0,0.00019177,2]
[334956770,1723671082241,-500.0,0.00019177,2]
[334956771,1723671082251,-500.0,0.00019177,2]
[334956772,1723671082262,-696.69,0.00019177,2]
[334956773,1723671082271,-722.64,0.00019177,2]
[334956774,1723671082280,-979.79,0.00019177,2]
[334956775,1723671082289,-500.0,0.00019177,2]
[334956776,1723671082298,-500.0,0.00019177,2]
[334956777,1723671082308,-500.0,0.00019177,2]
[334956778,1723671082317,-639.81,0.00019177,2]
[334956779,1723671082325,-500.0,0.00019177,2]
[334956780,1723671082335,-500.0,0.00019177,2]
[334956781,1723671082344,-673.87,0.00019177,2]
[334956782,1723671082354,-500.0,0.00019177,2]
[334956783,1723671082363,-1191.97,0.00019177,2]
[334956784,1723671082372,-293.95183355,0.00019177,2]
[334956785,1723671082381,-500.0,0.00019177,2]
[334956786,1723671082390,-500.0,0.00019177,2]
[334956787,1723671082400,-716.22,0.00019177,2]
[334956788,1723671082409,-1083.34,0.00019177,2]
[334956789,1723671082419,-222.10043569,0.00019177,2]
[334956790,1723671082428,-867.92,0.00019177,2]
[334956791,1723671082437,-598.09,0.00019177,2]
[334956792,1723671082447,-500.0,0.00019177,2]
[334956793,1723671082456,-837.07,0.00019177,2]
[334956794,1723671082465,-526.04,0.00019177,2]
[334956795,1723671082474,-500.0,0.00019177,2]
[334956796,1723671082483,-500.0,0.00019177,2]
[334956797,1723671082492,-500.0,0.00019177,2]
[334956798,1723671082502,-828.6,0.00019178,2]
[334956799,1723671082511,-500.0,0.00019178,2]
[334956800,1723671082520,-500.0,0.00019178,2]
[334956801,1723671082529,-500.0,0.00019178,2]
[334956802,1723671082538,-500.0,0.00019178,2]
[334956803,1723671082547,-500.0,0.00019178,2]
[334956804,1723671082556,-153.12377537,0.00019178,2]
[334956805,1723671082565,-2000.0,0.00019178,2]
[334956806,1723671082575,-578.01,0.00019178,2]
[334956807,1723671082585,-500.0,0.00019178,2]
[334956808,1723671082594,-543.0,0.00019178,2]
[334956809,1723671082603,-516.82,0.00019178,2]
[334956810,1723671082613,-1439.5,0.00019178,2]
[334956811,1723671082623,-370.05379479,0.00019178,2]
[334956812,1723671082632,-339.74,0.00019178,2]
[334956813,1723671082642,-1349.32,0.00019178,2]
[334956814,1723671082651,-879.23,0.00019178,2]
[334956815,1723671082660,-1445.27,0.00019178,2]
[334956816,1723671082669,-200.0,0.00019178,2]
[334956817,1723671082678,-200.0,0.00019178,2]
[334956818,1723671082687,-200.0,0.00019178,2]
[334956819,1723671082696,-200.0,0.00019178,2]
[334956820,1723671082705,-200.0,0.00019178,2]
[334956821,1723671082714,-200.0,0.00019178,2]
[334956822,1723671082723,-188.0,0.00019178,2]
[334956823,1723671082732,-3166.54,0.00019178,2]
[334956824,1723671082741,-7900.8067279,0.0001921,2]
[334956825,1723671082751,-500.0,0.00019304,2]
[334956826,1723671082760,-2332.64,0.00019339,2]
[334956827,1723671082769,-2258.0,0.00019363,2]
[334956828,1723671082779,-435.35244011,0.000194,2]
[334956829,1723671082789,-1825.50464962,0.00019405,2]
[334956830,1723671082798,-1000.0,0.00019408,2]
[334956831,1723671082807,-1074.68,0.0001945,2]
[334956832,1723671082926,-1128.61,0.0001945,2]
[334956833,1723671082936,-507.16,0.0001945,2]
[334956834,1723671082945,-500.0,0.0001945,2]
[334956835,1723671082954,-500.0,0.00019451,2]
[334956836,1723671082963,-500.0,0.00019451,2]
[334956837,1723671082972,-395.82,0.00019451,2]
[334956838,1723671082982,-358.71994075,0.00019451,2]
[334956839,1723671082992,-350.85053977,0.00019451,2]
[334956840,1723671083001,-696.69,0.00019451,2]
[334956841,1723671083012,-722.64,0.00019451,2]
[334956842,1723671083022,-979.79,0.00019451,2]
[334956843,1723671083032,-573.37491476,0.00019451,2]
[334956844,1723671083041,-500.0,0.00019451,2]
[334956845,1723671083051,-500.0,0.00019451,2]
[334956846,1723671083060,-639.81,0.00019451,2]
[334956847,1723671083070,-500.0,0.00019451,2]
[334956848,1723671083079,-367.85,0.00019451,2]
[334956849,1723671083088,-673.87,0.00019451,2]
[334956850,1723671083098,-500.0,0.00019451,2]
[334956851,1723671083107,-1191.97,0.00019451,2]
[334956852,1723671083116,-500.0,0.00019451,2]
[334956853,1723671083125,-201.3157,0.00019451,2]
[334956854,1723671083135,-716.22,0.00019451,2]
[334956855,1723671083145,-1083.34,0.00019451,2]
[334956856,1723671083155,-867.92,0.00019451,2]
[334956857,1723671083165,-598.09,0.00019451,2]
[334956858,1723671083175,-546.85,0.00019451,2]
[334956859,1723671083185,-837.07,0.00019451,2]
[334956860,1723671083195,-526.04,0.00019451,2]
[334956861,1723671083204,-500.0,0.00019451,2]
[334956862,1723671083214,-500.0,0.00019451,2]
[334956863,1723671083224,-222.05037005,0.00019451,2]
[334956864,1723671083234,-828.6,0.00019452,2]
[334956865,1723671083243,-578.01,0.00019452,2]
[334956866,1723671083253,-500.0,0.00019452,2]
[334956867,1723671083262,-543.0,0.00019452,2]
[334956868,1723671083271,-516.82,0.00019452,2]
[334956869,1723671083280,-1439.5,0.00019452,2]
[334956870,1723671083289,-1349.32,0.00019452,2]
[334956871,1723671083298,-879.23,0.00019452,2]
[334956872,1723671083308,-1445.27,0.00019452,2]
[334956873,1723671083317,-800.0,0.00019487,2]
[334956874,1723671083326,-180.44621795,0.00019489,2]
[334956875,1723671083335,-1000.0,0.000195,2]
[334956876,1723671083343,-310.16,0.0001955,2]
[334956877,1723671083353,-500.0,0.00019578,2]
[334956878,1723671083362,-1074.68,0.00019724,2]
[334956879,1723671083371,-1128.61,0.00019724,2]
[334956880,1723671083380,-507.16,0.00019724,2]
[334956881,1723671083389,-500.0,0.00019724,2]
[334956882,1723671083398,-330.22,0.00019725,2]
[334956883,1723671083407,-500.0,0.00019725,2]
[334956884,1723671083416,-696.69,0.00019725,2]
[334956885,1723671083425,-722.64,0.00019725,2]
[334956886,1723671083434,-979.79,0.00019725,2]
[334956887,1723671083443,-555.3702004,0.00019725,2]
[334956888,1723671083452,-500.0,0.00019725,2]
[334956889,1723671083461,-639.81,0.00019725,2]
[334956890,1723671083470,-500.0,0.00019725,2]
[334956891,1723671083479,-673.87,0.00019725,2]
[334956892,1723671083488,-500.0,0.00019725,2]
[334956893,1723671083498,-1191.97,0.00019725,2]
[334956894,1723671083508,-500.0,0.00019725,2]
[334956895,1723671083518,-716.22,0.00019725,2]
[334956896,1723671083527,-1083.34,0.00019725,2]
[334956897,1723671083537,-867.92,0.00019725,2]
[334956898,1723671083546,-598.09,0.00019725,2]
[334956899,1723671083556,-837.07,0.00019725,2]
[334956900,1723671083566,-526.04,0.00019725,2]
[334956901,1723671083576,-500.0,0.00019725,2]
[334956902,1723671083586,-500.0,0.00019725,2]
[334956903,1723671083595,-828.6,0.00019726,2]
[334956904,1723671083605,-578.01,0.00019726,2]
[334956905,1723671083614,-428.50092203,0.00019726,2]
[334956906,1723671083623,-543.0,0.00019726,2]
[334956907,1723671083633,-516.82,0.00019726,2]
[334956908,1723671083642,-1439.5,0.00019726,2]
[334956909,1723671083650,-1349.32,0.00019726,2]
[334956910,1723671083659,-879.23,0.00019726,2]
[334956911,1723671083669,-1445.27,0.00019726,2]
[334956912,1723671083678,-22086.13,0.000198,2]
[334956913,1723671083687,-11734.39550586,0.000198,2]
[334956914,1723671083696,-500.0,0.00019852,2]
[334956915,1723671083706,-676.50109187,0.00019886,2]
[334956916,1723671083715,-981.93461454,0.0001989,2]
[334956917,1723671083724,-1184.88860926,0.000199,2]
[334956918,1723671083733,-251.2,0.0001994,2]
[334956919,1723671083743,-215.66,0.00019943,2]
[334956920,1723671083752,-1074.68,0.00019998,2]
[334956921,1723671083762,-1128.61,0.00019998,2]
[334956922,1723671083772,-507.16,0.00019998,2]
[334956923,1723671083781,-268.0947523,0.00019998,2]
[334956924,1723671083789,-563.2,0.00019999,2]
[334956925,1723671083798,-696.69,0.00019999,2]
[334956926,1723671083807,-722.64,0.00019999,2]
[334956927,1723671083816,-979.79,0.00019999,2]
[334956928,1723671083826,-273.23,0.00019999,2]
[334956929,1723671083835,-639.81,0.00019999,2]
[334956930,1723671083849,-500.0,0.00019999,2]
[334956931,1723671083857,-673.87,0.00019999,2]
[334956932,1723671083866,-603.38121078,0.00019999,2]
[334956933,1723671083876,-1191.97,0.00019999,2]
[334956934,1723671083886,-413.35852866,0.00019999,2]
[334956935,1723671083896,-716.22,0.00019999,2]
[334956936,1723671083905,-1083.34,0.00019999,2]
[334956937,1723671083914,-867.92,0.00019999,2]
[334956938,1723671083925,-598.09,0.00019999,2]
[334956939,1723671083939,-837.07,0.00019999,2]
[334956940,1723671083958,-526.04,0.00019999,2]
[334956941,1723671083972,-500.0,0.00019999,2]
[334956942,1723671083988,-629.42189278,0.00019999,2]
[334956943,1723671084004,-2000.0,0.0002,2]
[334956944,1723671084021,-990.0,0.0002,2]
[334956945,1723671084038,-3240.08465812,0.0002,2]
[334956946,1723671084052,-150.0,0.0002,2]
[334956947,1723671084068,-200.0,0.0002,2]
[334956948,1723671084084,-186.0,0.0002,2]
[334956949,1723671084096,-500.0,0.0002,2]
[334956950,1723671084111,-294.08193253,0.0002,2]
[334956951,1723671084126,-3777.74659147,0.0002,2]
[334956952,1723671084143,-6653.0,0.0002,2]
[334956953,1723671084160,-3950.0,0.0002,2]
[334956954,1723671084173,-3915.25908587,0.0002,2]
[334956955,1723671084185,-193.0,0.0002,2]
[334956956,1723671084202,-2000.0,0.0002,2]
[334956957,1723671084215,-828.75234317,0.0002,2]
[334956958,1723671084231,-578.24,0.0002,2]
[334956959,1723671084247,-2039.27,0.0002,2]
[334956960,1723671084259,-2039.27,0.0002,2]
[334956961,1723671084274,-2039.27,0.0002,2]
[334956962,1723671084288,-2039.27,0.0002,2]
[334956963,1723671084301,-2039.27,0.0002,2]
[334956964,1723671084314,-2039.27,0.0002,2]
[334956965,1723671084327,-2039.27,0.0002,2]
[334956966,1723671084341,-2039.27,0.0002,2]
[334956967,1723671084355,-2039.27,0.0002,2]
[334956968,1723671084369,-2039.27,0.0002,2]
[334956969,1723671084382,-2039.27,0.0002,2]
[334956970,1723671084397,-2039.27,0.0002,2]
[334956971,1723671084410,-2039.27,0.0002,2]
[334956972,1723671084423,-2039.27,0.0002,2]
[334956973,1723671084437,-2039.27,0.0002,2]
[334956974,1723671084451,-2039.27,0.0002,2]
[334956975,1723671084464,-2039.27,0.0002,2]
[334956976,1723671084476,-2039.27,0.0002,2]
[334956977,1723671084489,-2039.27,0.0002,2]
[334956978,1723671084501,-2039.27,0.0002,2]
[334956979,1723671084515,-2039.27,0.0002,2]
[334956980,1723671084528,-2039.27,0.0002,2]
[334956981,1723671084540,-2000.0,0.0002,2]
[334956982,1723671084553,-2000.0,0.0002,2]
[334956983,1723671084566,-2000.0,0.0002,2]
[334956984,1723671084579,-367.30388687,0.0002,2]
[334956985,1723671084592,-308.36598724,0.0002,2]
[334956986,1723671084605,-543.00913251,0.0002,2]
[334956987,1723671084618,-218.24239438,0.0002,2]
[334956988,1723671084630,-516.86,0.0002,2]
[334956989,1723671084644,-1439.66,0.0002,2]
[334956990,1723671084658,-1349.39734735,0.0002,2]
[334956991,1723671084670,-150.0,0.0002,2]
[334956992,1723671084683,-879.23235549,0.0002,2]
[334956993,1723671084697,-1445.4777,0.0002,2]
[334956994,1723671084711,-1000.0,0.0002,2]
[334956995,1723671084724,-1000.0,0.0002,2]
[334956996,1723671084739,-320.0,0.0002,5]
[334956997,1723671084753,-150.0,0.0002,5]
[334956998,1723671084767,-2868.465413,0.0002001,2]
[334956999,1723671084780,-3854.476839,0.0002001,2]
[334957000,1723671084792,-2000.0,0.0002001,2]
[334957001,1723671084805,-958.7724582,0.00020016,2]
[334957002,1723671084818,-2000.0,0.0002002,2]
[334957003,1723671084830,-500.0,0.00020026,2]
[334957004,1723671084846,-3074.4391,0.0002003,2]
[334957005,1723671084858,-500.0,0.00020032,2]
[334957006,1723671084870,-500.0,0.00020042,2]
[334957007,1723671084884,-500.0,0.00020045,2]
[334957008,1723671084895,-155.0,0.0002005,3]
[334957009,1723671084910,-2533.93722692,0.00020092,2]
[334957010,1723671084926,-262.74935537,0.00020126,2]
[334957011,1723671084940,-628.88158398,0.00020134,2]
[334957012,1723671084953,-680.07511694,0.00020211,2]
[334957013,1723671084965,-312.17786625,0.00020233,2]
[334957014,1723671084978,-1074.71973635,0.00020272,2]
[334957015,1723671084992,-1128.67329524,0.00020272,2]
[334957016,1723671085005,-507.29052711,0.00020272,2]
[334957017,1723671085019,-2039.27,0.00020273,2]
[334957018,1723671085031,-696.89104521,0.00020273,2]
[334957019,1723671085044,-722.64,0.00020273,2]
[334957020,1723671085056,-980.0,0.00020273,2]
[334957021,1723671085069,-639.9676581,0.00020273,2]
[334957022,1723671085081,-461.71873224,0.00020273,2]
[334957023,1723671085095,-673.88536915,0.00020273,2]
[334957024,1723671085109,-1191.97,0.00020273,2]
[334957025,1723671085122,-716.40194157,0.00020273,2]
[334957026,1723671085135,-1083.44,0.00020273,2]
[334957027,1723671085148,-868.00785039,0.00020273,2]
[334957028,1723671085162,-598.27244075,0.00020273,2]
[334957029,1723671085175,-837.11148437,0.00020273,2]
[334957030,1723671085189,-526.09959181,0.00020273,2]
[334957031,1723671085202,-490.02,0.00020273,2]
[334957032,1723671085215,-996.3,0.00020325,2]
[334957033,1723671085228,-2500.0,0.0002034,2]
[334957034,1723671085241,-647.09591446,0.00020346,2]
[334957035,1723671085253,-500.0,0.00020393,2]
[334957036,1723671085272,-500.0,0.0002041,2]
[334957037,1723671085285,-1000.0,0.00020431,2]
[334957038,1723671085299,-583.21,0.00020447,2]
[334957039,1723671085311,-200.0,0.0002048,2]
[334957040,1723671085328,-800.0,0.00020487,2]
[334957041,1723671085340,-1000.0,0.00020498,2]
[334957042,1723671085354,-7900.8067279,0.00020507,2]
[334957043,1723671085367,-500.0,0.00020511,2]
[334957044,1723671085380,-500.0,0.00020522,2]
[334957045,1723671085394,-500.0,0.00020537,2]
[334957046,1723671085600,-478.2193538,0.00020543,2]
[334957047,1723671085615,-2039.47,0.00020547,2]
[334957048,1723671085625,-722.76,0.00020547,2]
[334957049,1723671085635,-1192.07,0.00020547,2]
[334957050,1723671085645,-173.28,0.00020548,2]
[334957051,1723671085656,-2000.0,0.0002057,2]
[334957052,1723671085666,-500.0,0.00020638,2]
[334957053,1723671085675,-500.0,0.00020668,2]
[334957054,1723671085684,-1000.0,0.00020676,2]
[334957055,1723671085693,-1168.0,0.000207,4]
[334957056,1723671085702,-310.16,0.000207,2]
[334957057,1723671085712,-500.0,0.00020722,2]
[334957058,1723671085722,-500.0,0.00020733,2]
[334957059,1723671085731,-500.0,0.00020745,2]
[334957060,1723671085740,-500.0,0.00020746,2]
[334957061,1723671085750,-500.0,0.00020753,2]
[334957062,1723671085759,-500.0,0.00020779,2]
[334957063,1723671085768,-5059.0,0.000208,4]
[334957064,1723671085778,-500.0,0.00020842,2]
[334957065,1723671085787,-500.0,0.00020892,2]
[334957066,1723671085797,-500.0,0.00020896,2]
[334957067,1723671085805,-500.0,0.0002092,2]
[334957068,1723671085814,-2500.0,0.0002093,2]
[334957069,1723671085824,-2500.0,0.00020956,2]
[334957070,1723671085833,-2500.0,0.00020974,2]
[334957071,1723671085845,-1211.0599771,0.00020988,2]
[334957072,1723671085854,-2000.0,0.00021,2]
[334957073,1723671085863,-2000.0,0.00021,2]
[334957074,1723671085872,-4628.59617596,0.00021,4]
[334957075,1723671085882,-500.0,0.00021017,2]
[334957076,1723671085891,-500.0,0.00021133,2]
[334957077,1723671085901,-2000.0,0.00021197,2]
[334957078,1723671085911,-500.0,0.00021205,2]
[334957079,1723671085922,-1000.0,0.00021263,2]
[334957080,1723671085932,-2295.0,0.00021278,2]
[334957081,1723671085941,-2500.0,0.00021284,2]
[334957082,1723671085950,-22086.13,0.000213,2]
[334957083,1723671085959,-155.0,0.0002133,5]
[334957084,1723671085968,-2500.0,0.00021336,2]
[334957085,1723671085978,-2000.0,0.00021362,2]
[334957086,1723671085987,-171.18,0.0002137,2]
[334957087,1723671085997,-5913.08,0.0002137,2]
[334957088,1723671086008,-500.0,0.00021411,2]
[334957089,1723671086018,-500.0,0.00021462,2]
[334957090,1723671086027,-500.0,0.00021463,2]
[334957091,1723671086037,-500.0,0.00021467,2]
[334957092,1723671086046,-500.0,0.00021585,2]
[334957093,1723671086056,-11497.0,0.000216,5]
[334957094,1723671086066,-3000.0,0.000216,2]
[334957095,1723671086075,-150.0,0.00021645,2]
[334957096,1723671086084,-500.0,0.00021689,2]
[334957097,1723671086093,-2000.0,0.0002171,2]
[334957098,1723671086103,-500.0,0.00021725,2]
[334957099,1723671086112,-500.0,0.0002177,2]
[334957100,1723671086121,-1000.0,0.00021775,2]
[334957101,1723671086131,-500.0,0.0002178,2]
[334957102,1723671086140,-312.17786625,0.00021789,2]
[334957103,1723671086151,-7900.8067279,0.00021805,2]
[334957104,1723671086161,-500.0,0.00021806,2]
[334957105,1723671086171,-500.0,0.00021808,2]
[334957106,1723671086182,-310.16,0.0002185,2]
[334957107,1723671086192,-500.0,0.0002185,2]
[334957108,1723671086203,-50000.0,0.0002187,4]
[334957109,1723671086212,-797.87239406,0.000219,2]
[334957110,1723671086222,-162.0,0.000219,2]
[334957111,1723671086232,-2000.0,0.000219,2]
[334957112,1723671086241,-250.0,0.000219,2]
[334957113,1723671086251,-600.0,0.000219,2]
[334957114,1723671086261,-325.0,0.000219,2]
[334957115,1723671086270,-575.768,0.00021918,2]
[334957116,1723671086279,-575.768,0.00021918,2]
[334957117,1723671086289,-575.768,0.00021918,2]
[334957118,1723671086299,-575.768,0.00021918,2]
[334957119,1723671086308,-575.768,0.00021918,2]
[334957120,1723671086319,-575.768,0.00021918,2]
[334957121,1723671086328,-575.768,0.00021918,2]
[334957122,1723671086337,-575.768,0.00021918,2]
[334957123,1723671086347,-469.8,0.00021918,2]
[334957124,1723671086358,-469.8,0.00021918,2]
[334957125,1723671086368,-469.8,0.00021918,2]
[334957126,1723671086378,-469.8,0.00021918,2]
[334957127,1723671086387,-469.8,0.00021918,2]
[334957128,1723671086397,-469.8,0.00021918,2]
[334957129,1723671086408,-469.8,0.00021918,2]
[334957130,1723671086417,-469.8,0.00021918,2]
[334957131,1723671086428,-469.8,0.00021918,2]
[334957132,1723671086437,-469.8,0.00021918,2]
[334957133,1723671086448,-469.8,0.00021918,2]
[334957134,1723671086457,-469.8,0.00021918,2]
[334957135,1723671086468,-469.8,0.00021918,2]
[334957136,1723671086478,-469.8,0.00021918,2]
[334957137,1723671086487,-469.8,0.00021918,2]
[334957138,1723671086496,-469.8,0.00021918,2]
[334957139,1723671086507,-469.8,0.00021918,2]
[334957140,1723671086516,-469.8,0.00021918,2]
[334957141,1723671086527,-469.8,0.00021918,2]
[334957142,1723671086536,-469.8,0.00021918,2]
[334957143,1723671086547,-479.842609,0.00021918,2]
[334957144,1723671086556,-479.842609,0.00021918,2]
[334957145,1723671086566,-479.842609,0.00021918,2]
[334957146,1723671086576,-479.842609,0.00021918,2]
[334957147,1723671086586,-479.842609,0.00021918,2]
[334957148,1723671086596,-479.842609,0.00021918,2]
[334957149,1723671086605,-479.842609,0.00021918,2]
[334957150,1723671086614,-479.842609,0.00021918,2]
[334957151,1723671086623,-479.842609,0.00021918,2]
[334957152,1723671086632,-479.842609,0.00021918,2]
[334957153,1723671086642,-479.842609,0.00021918,2]
[334957154,1723671086651,-479.842609,0.00021918,2]
[334957155,1723671086659,-479.842609,0.00021918,2]
[334957156,1723671086668,-479.842609,0.00021918,2]